[Event "32nd NATO Championship 2022"]
[Site "Tartu"]
[Date "2022.06.30"]
[Round "5.1"]
[White "Wang, Eigen"]
[Black "Pavlidis, Anastasios"]
[Result "0-1"]
[ECO "D30"]
[WhiteElo "2269"]
[BlackElo "2296"]
[Annotator "TA"]
[PlyCount "62"]
[EventDate "2022.06.27"]
[EventType "swiss"]
[EventCountry "EST"]
[SourceTitle "playchess.com"]
[Source "ChessBase"]
[SourceQuality "1"]
[TimeControl "5400+30"]

{[%evp 9,62,14,17,6,6,9,7,-5,27,18,61,59,70,59,103,116,98,107,95,104,106,112,122,127,120,72,69,68,72,0,0,-115,-122,-95,-96,-110,29,-263,-251,-1157,-117,-1085,-1656,-1620,-1633,-1626,-1616,-1441,-1429,-1410,-1394,-1199,-1188,-29990,-29991]} 1. d4 {[%emt 0:00:18]} d5 {[%emt 0:00:30]} 2. Nf3 {[%emt 0:00:49]} e6 {[%emt 0:00:46]} 3. c4 {[%emt 0:00:57]} h6 {[%emt 0:00:40]} 4. e3 {[%emt 0:02:24]} Nf6 {[%emt 0:04:17]} 5. Nbd2 {[%emt 0:00:37]} c5 {[%emt 0:09:59]} 6. dxc5 {[%emt 0:03:32] D30: Queen's Gambit Declined: Systems without Nc3.} Bxc5 {[%emt 0:01:11]} 7. a3 {[%emt 0:01:16]} O-O {[%emt 0:03:55] [#]} 8. Be2 $146 {[%emt 0:03:04] The position is equal.} ({Predecessor:} 8. b4 Be7 9. Bb2 dxc4 10. Bxc4 Nbd7 11. O-O b6 12. Be2 Bb7 13. h3 Nd5 14. Rc1 {0-1 (42) Tyler,R-Herringer,M Victoria 2008}) 8... Re8 {[%emt 0:08:10]} 9. O-O {[%emt 0:06:05]} e5 {[%emt 0:05:04]} 10. b4 {[%emt 0:01:01]} Bd6 {[%emt 0:03:50]} 11. Bb2 {[%emt 0:09:36]} a5 {[%emt 0:14:37]} 12. cxd5 {[%emt 0:07:30][%cal Bc4d5,Bd5d6][%mdl 32]} e4 {[%emt 0:03:23]} 13. Nd4 {[%emt 0:01:32]} axb4 {[%emt 0:02:01]} 14. Nc4 {[%emt 0:07:06]} Bf8 {[%emt 0:04:53]} 15. d6 {[%emt 0:08:59]} Bd7 {[%emt 0:02:47]} 16. axb4 {[%emt 0:02:24]} Rxa1 {[%emt 0:00:11]} 17. Qxa1 {[%emt 0:05:35]} (17. Bxa1 $142 b5 18. Na3 Bxd6 19. Ndc2 (19. Naxb5 Bxb4 20. Qc2 Qe7 $16)) 17... b5 $16 {[%emt 0:01:49]} 18. Na5 {[%emt 0:12:40]} Bxd6 {[%emt 0:00:24]} 19. Rd1 {[%emt 0:00:56]} (19. Bxb5 $2 Bxh2+ 20. Kh1 (20. Kxh2 Ng4+ 21. Kg1 Qh4 $19) 20... Bxb5 $19) ({White should play} 19. Nxb5 $16 Bxb4 20. Nb3) 19... Ng4 $1 $36 {[%emt 0:10:30][%mdl 2048] ...Qh4 is the strong threat. Black has good play.} 20. h3 {[%emt 0:03:50] [#]} (20. Nxb5 $2 Qh4 $1 21. Bxg4 Qxh2+ 22. Kf1 Bxg4 $19) (20. g3 $11 Qf6 21. Bxg4 Bxg4 22. Rd2) 20... Nxf2 $1 $17 {[%emt 0:04:46][%mdl 512]} 21. Kxf2 {[%emt 0:00:17]} Qh4+ $1 {[%emt 0:00:23]} (21... Qg5 22. Bxb5 $1 {[%mdl 512]} Bg3+ 23. Kg1 Bxh3 24. gxh3 (24. Bxe8 $2 Bh2+ 25. Kf2 Qxg2+ 26. Ke1 Bg3#)) 22. Kf1 {[%emt 0:01:50]} Bg3 {[%emt 0:03:47] [#]} (22... Bxh3 $1 $17 23. Nf5 (23. gxh3 $2 Qxh3+ 24. Ke1 Qxe3 $19) (23. Nxb5 Bxg2+ 24. Kxg2 Qh2+ 25. Kf1 Bg3 26. Bxg7 Qh1#) 23... Bxg2+ 24. Kxg2 Qg5+ 25. Kf1 (25. Kh1 $2 Qxf5 26. Rxd6 Qh3+ 27. Kg1 Qxe3+ 28. Kf1 Qf4+ 29. Kg2 Qxd6 $19) 25... Qxf5+ 26. Ke1 Qh3 $1 27. Rxd6 Qg3+ 28. Kd2 (28. Kf1 Qxd6 29. Qe1 Rc8 $17) 28... Qxd6+ 29. Bd4 Qxb4+ 30. Qc3 Qxc3+ 31. Kxc3 Rc8+ 32. Kb4 Na6+ 33. Kxb5 Nc7+ 34. Kb4 Ne6) 23. Bxb5 $2 {[%emt 0:07:55][%mdl 8192]} (23. Nxb5 {is a self mate.} Bxh3 $1 24. Bc4 Bg4 25. Bxf7+ Kh7) (23. Nf5 $1 $11 Bxf5 24. Rd5 (24. Bxg7 $2 Bxh3 25. Bc4 Bg4 $19)) 23... Qf6+ $19 {[%emt 0:00:26]} 24. Kg1 $2 {[%emt 0:02:46]} (24. Nf3 Qf5 25. Bd3 (25. Bxd7 $2 Nxd7 26. Kg1 exf3 $19)) 24... Qf2+ {[%emt 0:00:07]} 25. Kh1 {[%emt 0:00:02] [#]} Bxh3 $1 {[%emt 0:00:13][%csl Gh3][%cal Rf2g2][%mdl 512]} 26. Rg1 {[%emt 0:03:41] [#]} Re5 $1 {[%emt 0:00:45][%cal Oe5h5]} 27. Be2 {[%emt 0:01:04] [#] Inhibits Rh5.} Rg5 $1 {[%emt 0:03:52][%cal Og3f4]} 28. Qf1 {[%emt 0:01:27] [#]} Bg4 $1 {[%emt 0:00:23]} 29. Bxg4 {[%emt 0:03:47]} Rxg4 {[%emt 0:00:06][%cal Rg4h4]} 30. Nf5 {[%emt 0:00:52] Inhibits Rh4+.} Rg5 {[%emt 0:00:26] ( -> ...Rh5+)} 31. Qd1 {[%emt 0:01:37] Prevents Rh5+.} Qxf5 {[%emt 0:02:53] Weighted Error Value: White=0.68/Black=0.11 (very precise)} 0-1

[Event "32nd NATO Championship 2022"]
[Site "Tartu"]
[Date "2022.06.30"]
[Round "5.2"]
[White "Sycz, Dariusz"]
[Black "Papasimakopoulos, Alexandros"]
[Result "0-1"]
[ECO "E14"]
[WhiteElo "2189"]
[BlackElo "2259"]
[Annotator "TA"]
[PlyCount "76"]
[EventDate "2022.06.27"]
[EventType "swiss"]
[EventCountry "EST"]
[SourceTitle "playchess.com"]
[Source "ChessBase"]
[SourceQuality "1"]
[TimeControl "5400+30"]

{[%evp 21,76,0,0,0,18,6,25,10,25,0,0,0,0,-33,-22,-58,-36,-87,-78,-108,-99,-127,-108,-142,-141,-145,-150,-477,-459,-442,-300,-573,-404,-392,-395,-397,-389,-435,-424,-441,-401,-391,-383,-400,-393,-615,-604,-619,-619,-716,-700,-763,-713,-780,-778,-1081,-1018]} 1. d4 {[%emt 0:00:04]} Nf6 {[%emt 0:00:07]} 2. Nf3 {[%emt 0:00:08]} b6 {[%emt 0:00:06]} 3. c4 {[%emt 0:02:47]} e6 {[%emt 0:00:33]} 4. e3 {[%emt 0:00:26]} Bb7 {[%emt 0:00:16]} 5. Bd3 {[%emt 0:00:07]} Be7 {[%emt 0:00:12]} 6. O-O {[%emt 0:00:15]} c5 {[%emt 0:00:21]} 7. Nbd2 {[%emt 0:02:07]} O-O {[%emt 0:00:22]} 8. b3 {[%emt 0:01:10]} cxd4 {[%emt 0:00:06]} 9. exd4 {[%emt 0:00:24]} d5 {[%emt 0:00:05]} 10. Bb2 {[%emt 0:02:32]} Nc6 {[%emt 0:00:23]} 11. Qe2 {[%emt 0:05:48]} Nb4 {[%emt 0:01:42]} 12. Bb1 {[%emt 0:00:25] E14: Queen's Indian: Classical Variation (4 e3).} dxc4 {[%emt 0:00:06]} 13. bxc4 {[%emt 0:00:45]} Rc8 {[%emt 0:00:25]} 14. a3 {[%emt 0:08:48] White has an edge.} Nc6 {[%emt 0:00:07]} 15. Bd3 {[%emt 0:06:51]} Re8 {[%emt 0:00:14] [#]} 16. Rfd1 $146 {[%emt 0:03:45]} ({Predecessor:} 16. Qe3 g6 17. Rad1 Qc7 18. Rfe1 Ng4 19. Qe2 Na5 20. h3 Nf6 21. Ne5 Nd7 22. Ng4 Bf8 23. d5 f5 24. dxe6 fxg4 25. Qxg4 {1-0 (33) Rakhmanov,A (2638)-Verstraeten,R (2379) Budva 2019}) 16... Bf8 {[%emt 0:00:21]} 17. Qe3 {[%emt 0:03:37]} g6 {[%emt 0:01:48]} 18. Qf4 {[%emt 0:07:01]} Bg7 {[%emt 0:02:15]} 19. Ng5 {[%emt 0:07:44]} (19. Rac1 $15) 19... Qc7 {[%emt 0:04:52]} 20. Qh4 {[%emt 0:01:48][%cal Od4d5]} h6 {[%emt 0:07:19]} 21. Nge4 {[%emt 0:02:17]} Nh5 {[%emt 0:05:25][%cal Bf6h5,Bh5f4,Bf4g2][%mdl 32]} 22. Nf3 {[%emt 0:03:14]} f5 {[%emt 0:01:52]} 23. Ng3 {[%emt 0:03:25]} Nf4 {[%emt 0:01:46] ...g5 is the strong threat.} 24. Bc1 $2 {[%emt 0:10:35] [#] This costs White the game.} (24. Bf1 $17 {is a better chance.}) 24... Nxg2 $1 $19 {[%emt 0:03:49][%mdl 512]} 25. Qh3 {[%emt 0:03:28]} Nf4 {[%emt 0:00:08]} 26. Qh4 {[%emt 0:00:34]} (26. Bxf4 {was the only chance.} Qxf4 27. Ne2) 26... g5 {[%emt 0:09:31]} 27. Bxf4 {[%emt 0:00:15]} Qxf4 {[%emt 0:00:07]} (27... gxh4 $2 {is the wrong capture.} 28. Bxc7 Nxd4 29. Nxd4 Bxd4 30. Bf4 $19) 28. Qxf4 {[%emt 0:00:53]} gxf4 {[%emt 0:00:06]} 29. Ne2 {[%emt 0:04:14]} Na5 {[%emt 0:00:34][%csl LRc4,LRf3]} 30. Ne5 {[%emt 0:05:41]} Nb3 {[%emt 0:02:28]} 31. Rab1 {[%emt 0:00:16] [#]} Nxd4 {[%emt 0:00:26][%mdl 512]} 32. Nxd4 {[%emt 0:00:08]} Bxe5 {[%emt 0:00:05][%cal Bg7e5,Be5c7,Bc7b8][%mdl 32] This bishop pair is nice.} 33. Nb5 {[%emt 0:00:37]} (33. Be2 $142) 33... a6 {[%emt 0:02:19] Black is clearly winning.} 34. Re1 {[%emt 0:00:26]} Rc5 {[%emt 0:00:11]} 35. Na7 {[%emt 0:00:58]} Bc7 {[%emt 0:00:24]} 36. Rbd1 {[%emt 0:03:05]} Bb8 {[%emt 0:05:28]} 37. Bb1 {[%emt 0:00:43]} Kf7 {[%emt 0:01:10]} 38. Bxf5 {[%emt 0:00:59]} Rxf5 {[%emt 0:00:21] Weighted Error Value: White=0.65/Black=0.19 (very precise)} 0-1

[Event "32nd NATO Championship 2022"]
[Site "Tartu"]
[Date "2022.06.30"]
[Round "5.3"]
[White "Kedzierski, Slawomir"]
[Black "Stein, Robert"]
[Result "0-1"]
[ECO "A43"]
[WhiteElo "2150"]
[BlackElo "2365"]
[Annotator "TA"]
[PlyCount "128"]
[EventDate "2022.06.27"]
[EventType "swiss"]
[EventCountry "EST"]
[SourceTitle "playchess.com"]
[Source "ChessBase"]
[SourceQuality "1"]
[TimeControl "5400+30"]

{[%evp 14,128,68,46,54,39,58,65,47,51,106,48,57,37,46,42,45,52,83,82,83,59,82,79,86,79,108,108,110,67,78,77,159,46,44,36,31,18,23,0,0,0,0,0,0,0,27,37,13,0,41,0,0,-156,-154,-520,-528,-579,-605,-610,-604,-573,-574,-597,-596,-662,-629,-1449,-1389,-1317,-1218,-1429,-1025,-1661,-950,-890,-779,-29971,-29972,-29971,-29972,-29966,0,-2566,-2242,-1841,-1379,-29975,-29974,-29970,-1584,-29983,-29984,-29986,-6187,-29984,-316,-29986,-29987,-29990,-29986,-29986,-29984,-29984,-29984,-29984,-29985,-29988,-29986,-29986,-29987,-29987,-29988,-29997,-29998,-29998,-414]} 1. d4 {[%emt 0:00:25]} Nf6 {[%emt 0:00:55]} 2. Nf3 {[%emt 0:00:51]} c5 {[%emt 0:00:51]} 3. d5 {[%emt 0:00:30]} g6 {[%emt 0:00:24]} 4. Nc3 {[%emt 0:01:00]} Bg7 {[%emt 0:01:55]} 5. e4 {[%emt 0:00:24]} O-O {[%emt 0:01:57]} 6. Be2 {[%emt 0:00:43]} d6 {[%emt 0:08:20]} 7. O-O {[%emt 0:00:43]} Bg4 {[%emt 0:07:36]} 8. Bf4 {[%emt 0:08:07]} Qb6 {[%emt 0:12:17] A43: Schmid Benoni.} 9. Rb1 {[%emt 0:02:43]} Re8 {[%emt 0:07:58]} 10. h3 {[%emt 0:05:30]} Bxf3 {[%emt 0:00:58] White is slightly better.} 11. Bxf3 {[%emt 0:00:06] [#]} e6 $146 {[%emt 0:04:37]} ({Better is} 11... Nfd7 $14) ({Predecessor:} 11... Nbd7 12. Be2 Rad8 13. Re1 a6 14. Bf1 Qc7 15. a4 Nh5 16. Be3 e6 17. Qd2 Nb6 {½-½ (26) Chiburdanidze,M (2511)-Ju,W (2290) Ekaterinburg 2006}) 12. Re1 {[%emt 0:17:47]} (12. g4 $16) 12... exd5 $14 {[%emt 0:05:25]} 13. Nxd5 {[%emt 0:03:55]} Nxd5 {[%emt 0:00:28]} 14. Qxd5 {[%emt 0:00:36] Hoping for e5.} Be5 {[%emt 0:04:04]} 15. Be3 {[%emt 0:00:55]} Nc6 {[%emt 0:01:08]} 16. c3 {[%emt 0:01:01]} Qc7 {[%emt 0:04:54]} 17. Be2 {[%emt 0:01:02][%cal Bf3e2,Be2c4,Bc4d5][%mdl 32]} Bg7 {[%emt 0:07:57]} 18. Rbd1 {[%emt 0:01:22]} Rad8 {[%emt 0:01:37]} 19. Bc4 {[%emt 0:05:10]} a6 {[%emt 0:06:18]} 20. Bg5 {[%emt 0:01:30] This bishop pair is nice.} Rd7 {[%emt 0:01:12][%cal Og7d4]} 21. Qd2 {[%emt 0:00:47] Inhibits Bd4.} b5 {[%emt 0:01:57]} 22. Bd5 {[%emt 0:00:09]} Ne7 {[%emt 0:00:15] [#]} ({Black should play} 22... Ne5) 23. Bxe7 {[%emt 0:13:38]} (23. Bxf7+ $1 $16 {[%mdl 512]} Kxf7 24. e5 Bxe5 {[#]} 25. Rxe5 $1 dxe5 26. Qxd7 Qxd7 27. Rxd7) 23... Rdxe7 {[%emt 0:00:57]} 24. Qd3 {[%emt 0:07:47]} Kh8 {[%emt 0:02:20]} 25. Re3 {[%emt 0:01:35]} c4 {[%emt 0:01:59]} 26. Qc2 {[%emt 0:01:31]} Qc5 {[%emt 0:06:20]} 27. Rf3 {[%emt 0:05:54]} f5 $1 {[%emt 0:01:29]} 28. exf5 {[%emt 0:02:27] And now f6 would win.} Re1+ {[%emt 0:00:05]} 29. Kh2 {[%emt 0:00:27] Strongly threatening f6.} Rxd1 {[%emt 0:05:10]} ({But not} 29... R8e2 30. Rd2 Re5 31. b4 cxb3 32. Bxb3 $14) 30. Qxd1 {[%emt 0:00:12] Black must now prevent f6.} Re5 {[%emt 0:00:03][%csl LRd5,LRf5]} 31. Bb7 {[%emt 0:08:47]} gxf5 {[%emt 0:00:25]} 32. Qd2 {[%emt 0:04:27]} (32. Bxa6 $2 Qc6 33. Qd4 Qxa6 $19) 32... d5 {[%emt 0:01:51]} 33. Qg5 $2 {[%emt 0:02:17] Black keeps a firm grip on the game.} (33. Qf4 $1 $11) 33... Qc7 $36 {[%emt 0:00:36][%mdl 2048] White is under strong pressure.} (33... Re7 34. Bc8 $17) 34. g3 $2 {[%emt 0:00:45]} (34. Bxa6 $17 {nothing else works.} Re6+ 35. g3 Rxa6 36. Rxf5) 34... h6 $19 {[%emt 0:01:14]} 35. Qg6 {[%emt 0:00:19]} Qxb7 {[%emt 0:00:10]} 36. Rxf5 {[%emt 0:00:09]} Rxf5 {[%emt 0:00:06]} 37. Qxf5 {[%emt 0:00:04]} Qc6 {[%emt 0:00:07][%cal Ob5b4] Prevents Qe6.} 38. Kg1 {[%emt 0:00:28]} a5 {[%emt 0:00:15]} 39. g4 {[%emt 0:00:34]} b4 {[%emt 0:00:42]} 40. h4 {[%emt 0:00:15]} bxc3 {[%emt 0:00:16]} 41. bxc3 {[%emt 0:00:03]} d4 {[%emt 0:01:14]} 42. g5 {[%emt 0:00:25]} dxc3 {[%emt 0:00:46]} 43. g6 {[%emt 0:01:37]} Qe8 {[%emt 0:00:35]} 44. h5 {[%emt 0:00:21]} Qd8 {[%emt 0:00:36] ( -> ...Qg5+)} 45. f4 {[%emt 0:01:11] Inhibits Qg5+.} a4 {[%emt 0:01:01]} 46. Kg2 {[%emt 0:00:36]} Qd2+ {[%emt 0:01:21]} 47. Kh1 {[%emt 0:00:20]} Qd8 {[%emt 0:00:24]} (47... Qd1+ $142 48. Kh2 Qe2+ 49. Kh1 Qe8 50. Kg2 Bd4 51. Qd5 Qe2+ 52. Kh3 Bf6 53. Qb7 Qxh5+ 54. Kg3 Qxg6+ 55. Kf2 Bh4+ 56. Kf1 Qd3+ 57. Kg2 c2 58. Qb2+ Kg8 59. Qb8+ Bd8 60. Qb2 c3 61. Qa1 Bh4 62. Qf1 Qg3+ 63. Kh1 c1=Q 64. Qxc1 Qf3+ 65. Kh2 Bg3+ 66. Kh3 Bxf4+ 67. Kh4 Qg3+ 68. Kh5 Qg5#) 48. Kg2 {[%emt 0:00:05]} Qa8+ {[%emt 0:00:22]} 49. Kg3 {[%emt 0:00:21]} a3 {[%emt 0:00:08] ...Qe8 is the strong threat.} 50. Kh2 {[%emt 0:00:29]} Qd8 {[%emt 0:00:22]} 51. Kg2 {[%emt 0:00:11]} Bf6 {[%emt 0:00:25]} (51... Qd2+ $142 52. Kh1 Qd6 53. Kg2 c2 54. Qxc2 Qxf4 55. Qe2 Be5 56. Qf3 c3 57. Qb7 Qg3+ 58. Kf1 Qd3+ 59. Kf2 Bd4+ 60. Kg2 Qe2+ 61. Kh3 Qxh5+ 62. Kg3 Qxg6+ 63. Kh3 Qe6+ 64. Kh2 Qxa2+ 65. Kh3 Qe6+ 66. Kh2 Be5+ 67. Kg2 c2 68. Qa8+ Qg8+ 69. Qxg8+ Kxg8 70. Kf3 a2 71. Kg4 a1=Q 72. Kf5 c1=Q 73. Ke4 Qf1 74. Kd5 Qd4+ 75. Ke6 Qf7#) 52. Kh1 {[%emt 0:01:01]} Kg7 {[%emt 0:01:00]} 53. Kg2 {[%emt 0:00:40]} Qc7 {[%emt 0:00:06]} ({And not} 53... Qd3 54. Qe6 Qc2+ 55. Kh3 Qd3+ 56. Kh2 Qd2+ 57. Kh3 Qd3+ 58. Kh2 Qd2+ 59. Kh3 Qd3+ $11) (53... Qd2+ $142 54. Kf3 Qd3+ 55. Qxd3 cxd3 56. Ke3 c2 57. Kd2 Bb2 58. Kxd3 c1=Q 59. Ke4 Qc4+ 60. Kf3 Qxa2 61. f5 Qb3+ 62. Kf2 a2 63. Kg2 a1=Q 64. f6+ Bxf6 65. Kh2 Be5+ 66. Kg2 Qg3#) 54. Kf3 {[%emt 0:00:19]} Qe7 $2 {[%emt 0:00:45]} (54... Qd6 {mates} 55. Qb5 Qd1+ 56. Kg3 Qg1+ 57. Kh3 Qh1+ 58. Kg3 Qh4+ 59. Kg2 Qg4+ 60. Kh2 Qxf4+ 61. Kh3 Qh4+ 62. Kg2 Qe4+ 63. Kg1 Bd4+ 64. Kh2 Be5+ 65. Kg1 Qe1+ 66. Kg2 Qe2+ 67. Kg1 c2 68. Qd7+ Kf6 69. Qc6+ Kf5 70. Qc8+ Kg5 71. Qxc4 Qxc4 72. Kf2 c1=Q 73. Kf3 Qg4+ 74. Kf2 Qcg1#) 55. Kf2 $2 {[%emt 0:02:12]} (55. Qd5 $19) 55... Bd4+ {[%emt 0:00:24] Black mates.} 56. Kf1 {[%emt 0:00:06]} c2 {[%emt 0:00:56]} 57. Qxc2 {[%emt 0:00:25]} Qe3 {[%emt 0:00:25]} 58. Kg2 {[%emt 0:00:17]} c3 {[%emt 0:00:38]} 59. Qf5 {[%emt 0:00:48]} Qg1+ {[%emt 0:00:42]} 60. Kf3 {[%emt 0:00:26]} Qf1+ {[%emt 0:00:30]} 61. Kg3 {[%emt 0:00:30]} Bf2+ {[%emt 0:00:26]} 62. Kf3 {[%emt 0:00:17]} Bg1+ {[%emt 0:00:06]} 63. Kg3 {[%emt 0:01:03]} Qf2+ {[%emt 0:00:06]} 64. Kh3 {[%emt 0:01:20]} Qh2+ {[%emt 0:00:05] Weighted Error Value: White=0.79/Black=0.31} (64... Qf3+ $142 65. Kh4 Bf2#) 0-1

[Event "32nd NATO Championship 2022"]
[Site "Tartu"]
[Date "2022.06.30"]
[Round "5.10"]
[White "Pedersen, Finn"]
[Black "Balmaceda, Enrico"]
[Result "1/2-1/2"]
[ECO "D03"]
[WhiteElo "2300"]
[BlackElo "1958"]
[Annotator "TA"]
[PlyCount "97"]
[EventDate "2022.06.27"]
[EventType "swiss"]
[EventCountry "EST"]
[SourceTitle "playchess.com"]
[Source "ChessBase"]
[SourceQuality "1"]
[TimeControl "5400+30"]

{[%evp 20,97,8,6,6,6,10,6,20,0,11,0,0,-15,0,-8,-5,-120,15,13,31,20,39,30,42,42,48,48,48,9,48,48,58,66,74,58,74,51,74,66,81,28,33,31,54,27,27,27,63,27,27,27,27,25,25,3,27,3,3,-295,-295,-343,-327,-328,-327,-348,-207,-208,-191,-125,-127,-121,-131,-108,0,-58,0,-251,0,0]} 1. Nf3 {[%emt 0:00:11]} d5 {[%emt 0:00:21]} 2. d4 {[%emt 0:00:14]} Nf6 {[%emt 0:00:23]} 3. Bf4 {[%emt 0:00:24]} g6 {[%emt 0:01:59]} 4. e3 {[%emt 0:00:53]} Bg7 {[%emt 0:00:15]} 5. Nbd2 {[%emt 0:00:14]} O-O {[%emt 0:00:30]} 6. h3 {[%emt 0:00:17]} b6 {[%emt 0:01:20]} 7. c3 {[%emt 0:00:44]} Nbd7 {[%emt 0:01:36]} 8. Bd3 {[%emt 0:01:58]} Bb7 {[%emt 0:00:10]} 9. Qb1 {[%emt 0:00:15]} c5 {[%emt 0:00:43]} 10. O-O {[%emt 0:00:20]} Re8 {[%emt 0:06:29]} 11. Bh2 {[%emt 0:03:25]} Rc8 {[%emt 0:15:28] D03: 1 d4 d5 2 Nf3 Nf6 3 Bg5, including Torre Attack with early ...d5.} 12. a4 {[%emt 0:01:10]} a6 {[%emt 0:00:54]} 13. Re1 {[%emt 0:01:44] [#]} Nf8 $146 {[%emt 0:09:15]} ({Predecessor:} 13... c4 14. Bc2 b5 15. axb5 axb5 16. e4 dxe4 17. Nxe4 Nd5 18. Nfg5 Qb6 19. Nxf7 Kxf7 {1-0 (36) Huynh Mai Phuong,D (2128)-Le La Tra,M Dalat City 2005}) 14. Ne5 {[%emt 0:06:22]} N6d7 {[%emt 0:02:40]} 15. Nxd7 {[%emt 0:01:08]} Nxd7 {[%emt 0:04:08]} 16. f4 {[%emt 0:06:51]} f5 {[%emt 0:04:59]} 17. g4 {[%emt 0:01:04]} e6 {[%emt 0:00:18]} 18. g5 {[%emt 0:02:57]} (18. Qd1 $11) 18... Kf7 {[%emt 0:05:56]} (18... cxd4 $17 19. cxd4 e5 20. fxe5 (20. dxe5 Nxe5 21. fxe5 Qxg5+ 22. Kf2 d4 $19) 20... Nxe5 $1) 19. Nf3 {[%emt 0:00:47]} Rh8 {[%emt 0:01:12]} 20. Bg3 {[%emt 0:02:03]} Qc7 {[%emt 0:08:13]} 21. Kg2 {[%emt 0:02:29]} c4 {[%emt 0:06:41]} 22. Be2 {[%emt 0:00:30]} b5 {[%emt 0:00:20]} 23. b4 {[%emt 0:07:16]} Ra8 {[%emt 0:04:50]} 24. h4 {[%emt 0:00:53][%cal Oh4h5]} Bc6 {[%emt 0:00:46]} (24... bxa4 $5 {[%cal Rb7c6]} 25. h5 gxh5 $11) 25. a5 {[%emt 0:03:16][%cal Oh4h5]} Rag8 {[%emt 0:05:00]} 26. h5 {[%emt 0:01:26]} Ke8 {[%emt 0:06:58]} 27. Rh1 {[%emt 0:00:26]} Kd8 {[%emt 0:01:00]} 28. Nh4 {[%emt 0:02:15]} Bf8 {[%emt 0:00:47]} 29. Rh3 {[%emt 0:04:48]} Bd6 {[%emt 0:00:40]} 30. hxg6 {[%emt 0:01:59]} (30. Qh1 $16) 30... hxg6 $11 {[%emt 0:00:39]} 31. Qh1 {[%emt 0:01:30]} Nf8 {[%emt 0:00:43]} 32. Nf3 {[%emt 0:00:47]} Rxh3 {[%emt 0:02:14]} 33. Qxh3 {[%emt 0:00:07]} Qh7 {[%emt 0:00:27]} 34. Nh4 {[%emt 0:01:57]} Rh8 {[%emt 0:01:26]} 35. Rh1 {[%emt 0:00:15] Active counter play!} Be8 {[%emt 0:00:26]} 36. Bf3 {[%emt 0:00:12]} Qg8 {[%emt 0:00:39]} 37. Kf2 {[%emt 0:00:16]} Rh7 {[%emt 0:00:23]} 38. Qg2 {[%emt 0:00:23]} Qh8 {[%emt 0:00:38]} 39. Bxd5 $2 {[%emt 0:02:10][%mdl 8192]} exd5 $19 {[%emt 0:00:02]} 40. Qxd5 {[%emt 0:00:10]} Kc7 {[%emt 0:00:45] White must now prevent ...Bc6.} 41. Qa8 {[%emt 0:00:15] [#]} Bc6 {[%emt 0:01:41]} 42. Qa7+ {[%emt 0:00:18]} Kc8 {[%emt 0:00:35]} (42... Kd8 $142 43. Qxa6 Kd7) 43. Qxa6+ {[%emt 0:01:19]} Bb7 {[%emt 0:00:32]} 44. Qxd6 {[%emt 0:00:31]} Bxh1 {[%emt 0:00:25]} 45. Qc5+ {[%emt 0:03:19]} Kd8 {[%emt 0:02:06]} 46. Qb6+ {[%emt 0:00:43]} (46. Qxb5 $2 Rxh4 47. Qb6+ (47. Qb8+ $2 Ke7 $19) 47... Ke8 48. Qb5+ Nd7 49. Qxc4 Rh3 50. Qc8+ Ke7 51. Qxh8 Rxh8 $19) 46... Kc8 {[%emt 0:00:40]} (46... Ke7 $17 47. Qc7+ Ke6 48. Qb6+ Kf7) 47. Qc5+ $1 $15 {[%emt 0:01:06]} (47. Nxg6 $2 Nxg6 48. Qe6+ (48. Qxg6 $2 Be4 $19) 48... Rd7 49. Qxg6 Qh3 50. Qe8+ (50. Qa6+ $2 Bb7 $19) 50... Kc7 51. Qe5+ Kd8 52. Qb8+ Ke7 $19) (47. Qxb5 $2 Rxh4 48. Qxc4+ Kd8 49. Bxh4 Qxh4+ 50. Ke2 Qh2+ 51. Ke1 Qg1+ 52. Ke2 Qh2+ 53. Ke1 Qg1+ 54. Ke2 Bg2 $19) 47... Kd8 $2 {[%emt 0:00:47]} (47... Rc7 $1 $15 48. Qxb5 Qg7) 48. Qb6+ $1 $19 {[%emt 0:02:56] [#]} ({Wrong is} 48. Qxb5 $2 Rxh4 49. Qb6+ (49. Qb8+ $2 Ke7 $19) 49... Ke8 50. Qb5+ Kd8 51. Qb6+ (51. Qb8+ $2 Ke7 $19) 51... Ke8 52. Qb5+ Nd7 53. Qxc4 Rh3 54. Qc8+ Ke7 55. Qxh8 Rxh8 $19) 48... Kc8 $2 {[%emt 0:00:12]} (48... Ke7 $1 $19 49. Qc7+ Ke8 50. Qc8+ Kf7) 49. Qc5+ $1 {[%emt 0:00:56] Weighted Error Value: White=0.27 (precise) /Black=0.32} ({Don't blunder} 49. Nxg6 $2 Nxg6 50. Qe6+ (50. Qxg6 $2 Be4 $19) 50... Kb8 51. Qxg6 Be4 $19) ({Avoid the trap} 49. Qxb5 $2 Rxh4 50. Qxc4+ Kd8 51. Bxh4 Qxh4+ 52. Ke2 Qh2+ 53. Ke1 Qg1+ 54. Ke2 Bg2 $19) 1/2-1/2